fUST/lending_fUST_20240912
["ID","MTS","AMOUNT","RATE_DAILY","PERIOD"]
[337790090,1726120246913,-541.41800902,0.00021917,2]
[337790091,1726120246923,-1298.29,0.00021917,2]
[337790092,1726120246933,-500.0,0.00021917,2]
[337790093,1726120246943,-500.0,0.00021917,2]
[337790094,1726120246952,-500.0,0.00021917,2]
[337790095,1726120246962,-503.54136377,0.00021917,2]
[337790096,1726120246972,-581.22,0.00021917,2]
[337790097,1726120246983,-500.0,0.00021917,2]
[337790098,1726120246994,-500.0,0.00021917,2]
[337790099,1726120247005,-643.74,0.00021917,2]
[337790100,1726120247016,-500.0,0.00021917,2]
[337790101,1726120247026,-500.0,0.00021917,2]
[337790102,1726120247036,-500.0,0.00021917,2]
[337790103,1726120247046,-500.0,0.00021917,2]
[337790104,1726120247056,-500.0,0.00021917,2]
[337790105,1726120247066,-500.0,0.00021917,2]
[337790106,1726120247076,-500.0,0.00021917,2]
[337790107,1726120247086,-383.81880261,0.00021917,2]
[337790108,1726120247095,-763.48,0.00021917,2]
[337790109,1726120247104,-500.0,0.00021917,2]
[337790110,1726120247114,-500.0,0.00021917,2]
[337790111,1726120247124,-500.0,0.00021917,2]
[337790112,1726120247133,-500.0,0.00021917,2]
[337790113,1726120247156,-500.0,0.00021917,2]
[337790114,1726120247166,-825.86,0.00021917,2]
[337790115,1726120247176,-1666.86,0.00021917,2]
[337790116,1726120247186,-1264.64,0.00021917,2]
[337790117,1726120247197,-500.0,0.00021917,2]
[337790118,1726120247208,-502.19027191,0.00021917,2]
[337790119,1726120247218,-592.58,0.00021917,2]
[337790120,1726120247229,-502.06281062,0.00021917,2]
[337790121,1726120247239,-979.82,0.00021917,2]
[337790122,1726120247250,-500.0,0.00021917,2]
[337790123,1726120247260,-502.23135201,0.00021917,2]
[337790124,1726120247270,-502.61441016,0.00021917,2]
[337790125,1726120247281,-504.92599367,0.00021917,2]
[337790126,1726120247291,-1253.88,0.00021917,2]
[337790127,1726120247301,-503.32606653,0.00021917,2]
[337790128,1726120247311,-500.0,0.00021917,2]
[337790129,1726120247321,-1542.1,0.00021917,2]
[337790130,1726120247332,-500.0,0.00021917,2]
[337790131,1726120247343,-538.76,0.00021917,2]
[337790132,1726120247353,-503.40207683,0.00021917,2]
[337790133,1726120247363,-500.0,0.00021917,2]
[337790134,1726120247373,-500.0,0.00021917,2]
[337790135,1726120247383,-1908.5,0.00021917,2]
[337790136,1726120247393,-501.49033047,0.00021917,2]
[337790137,1726120247404,-500.0,0.00021917,2]
[337790138,1726120247414,-500.0,0.00021917,2]
[337790139,1726120247425,-508.68391604,0.00021917,2]
[337790140,1726120247434,-504.60527564,0.00021917,2]
[337790141,1726120247444,-500.0,0.00021917,2]
[337790142,1726120247454,-519.7166908,0.00021917,2]
[337790143,1726120247465,-1163.9555843,0.00021917,2]
[337790145,1726120247679,500.0,0.00019452,2]
[337790146,1726120247721,153.36215224,0.00019726,2]
[337790147,1726120247778,-1178.69,0.00020547,2]
[337790148,1726120247789,-1178.69,0.00020821,2]
[337790149,1726120247800,-1178.69,0.00021095,2]
[337790151,1726120247810,-1178.69,0.00021369,2]
[337790153,1726120247820,-1178.69,0.00021643,2]
[337790155,1726120247831,-505.3144157,0.00021917,2]
[337790157,1726120247840,-2226.13,0.00021917,2]
[337790159,1726120247850,-500.0,0.00021917,2]
[337790161,1726120247860,-503.28161975,0.00021917,2]
[337790163,1726120247869,-510.35523442,0.00021917,2]
[337790165,1726120247879,-470.29456581,0.00021917,2]
[337790168,1726120247904,-29.70543419,0.00021917,2]
[337790170,1726120247914,-92.53475922,0.00021917,2]
[337790173,1726120247926,-411.78367377,0.00021917,2]
[337790175,1726120247935,-1755.18,0.00021917,2]
[337790177,1726120247946,-500.0,0.00021917,2]
[337790179,1726120247958,-521.30724756,0.00021917,2]
[337790181,1726120247967,-500.0,0.00021917,2]
[337790182,1726120247977,-240.50623144,0.00021917,2]
[337790183,1726120247989,-259.49376856,0.00021917,2]
[337790184,1726120247999,-500.0,0.00021917,2]
[337790185,1726120248009,-151.0,0.00021917,2]
[337790186,1726120248019,-511.12799535,0.00021917,2]
[337790187,1726120248030,-151.0,0.00021917,2]
[337790188,1726120248040,-500.0,0.00021917,2]
[337790189,1726120248050,-1046.38,0.00021917,2]
[337790190,1726120248060,-500.0,0.00021917,2]
[337790191,1726120248071,-503.15917372,0.00021917,2]
[337790192,1726120248081,-804.15,0.00021917,2]
[337790193,1726120248091,-503.01357476,0.00021917,2]
[337790194,1726120248179,-1001.44,0.00021917,2]
[337790195,1726120248189,-495.76415998,0.00021917,2]
[337790196,1726120248198,-761.9,0.00021917,2]
[337790197,1726120248208,-500.0,0.00021917,2]
[337790198,1726120248217,-436.01090799,0.00021917,2]
[337790199,1726120248227,-621.295171,0.00021917,2]
[337790200,1726120248236,-500.0,0.00021917,2]
[337790201,1726120248247,-695.7,0.00021917,2]
[337790202,1726120248256,-621.295171,0.00021917,2]
[337790203,1726120248266,-500.0,0.00021917,2]
[337790204,1726120248276,-500.0,0.00021917,2]
[337790205,1726120248286,-665.89,0.00021917,2]
[337790206,1726120248296,-151.0,0.00021917,2]
[337790207,1726120248306,-500.0,0.00021917,2]
[337790208,1726120248320,-528.26,0.00021917,2]
[337790209,1726120248329,-500.0,0.00021917,2]
[337790210,1726120248342,-500.0,0.00021917,2]
[337790211,1726120248351,-500.0,0.00021917,2]
[337790212,1726120248361,-292.12437783,0.00021917,2]
[337790213,1726120248371,-500.0,0.00021917,2]
[337790214,1726120248382,-151.0,0.00021917,2]
[337790215,1726120248391,-1788.79,0.00021917,2]
[337790216,1726120248403,-500.0,0.00021917,2]
[337790217,1726120248415,-500.0,0.00021917,2]
[337790218,1726120248426,-561.35682585,0.00021917,2]
[337790219,1726120248436,-184.2954887,0.00021917,2]
[337790220,1726120248446,-237.06948409,0.00021917,2]
[337790221,1726120248455,-848.28,0.00021917,2]
[337790222,1726120248465,-500.0,0.00021917,2]
[337790223,1726120248475,-500.0,0.00021917,2]
[337790224,1726120248485,-535.0,0.00021917,2]
[337790225,1726120248495,-500.0,0.00021917,2]
[337790226,1726120248507,-501.65264834,0.00021917,2]
[337790227,1726120248519,-500.0,0.00021917,2]
[337790228,1726120248531,-1287.47,0.00021917,2]
[337790229,1726120248540,-151.0,0.00021917,2]
[337790230,1726120248550,-500.0,0.00021917,2]
[337790231,1726120248560,-500.0,0.00021917,2]
[337790232,1726120248570,-151.0,0.00021917,2]
[337790233,1726120248581,-151.0,0.00021917,2]
[337790234,1726120248591,-502.36175348,0.00021917,2]
[337790235,1726120248601,-151.0,0.00021917,2]
[337790236,1726120248612,-502.13506741,0.00021917,2]
[337790237,1726120248622,-500.0,0.00021917,2]
[337790238,1726120248632,-305.13595677,0.00021917,2]
[337790239,1726120248641,-500.0,0.00021917,2]
[337790240,1726120248654,-500.0,0.00021917,2]
[337790241,1726120248663,-163.6601284,0.00021917,2]
[337790242,1726120248673,-1208.61,0.00021917,2]
[337790243,1726120248683,-500.0,0.00021917,2]
[337790244,1726120248693,-151.0,0.00021917,2]
[337790245,1726120248704,-498.14246116,0.00021917,2]
[337790246,1726120248714,-500.0,0.00021917,2]
[337790247,1726120248724,-151.0,0.00021917,2]
[337790248,1726120248735,-504.83752884,0.00021917,2]
[337790249,1726120248746,-500.0,0.00021917,2]
[337790250,1726120248755,-242.47432569,0.00021917,2]
[337790251,1726120248766,-500.0,0.00021917,2]
[337790252,1726120248775,-500.0,0.00021917,2]
[337790253,1726120248784,-500.0,0.00021917,2]
[337790254,1726120248794,-2030.23,0.00021917,2]
[337790255,1726120248804,-500.0,0.00021917,2]
[337790256,1726120248814,-500.0,0.00021917,2]
[337790257,1726120248823,-500.0,0.00021917,2]
[337790258,1726120248833,-542.93,0.00021917,2]
[337790259,1726120248843,-506.16393023,0.00021917,2]
[337790260,1726120248852,-151.0,0.00021917,2]
[337790261,1726120248862,-506.35302767,0.00021917,2]
[337790262,1726120248873,-151.0,0.00021917,2]
[337790263,1726120248883,-500.0,0.00021917,2]
[337790264,1726120248893,-503.26379179,0.00021917,2]
[337790265,1726120248903,-500.0,0.00021917,2]
[337790266,1726120248913,-500.0,0.00021917,2]
[337790267,1726120248922,-500.0,0.00021917,2]
[337790268,1726120248934,-500.0,0.00021917,2]
[337790269,1726120248943,-504.02585046,0.00021917,2]
[337790270,1726120248954,-488.75707851,0.00021917,2]
[337790271,1726120248964,-545.01704193,0.00021917,2]
[337790272,1726120248974,-500.0,0.00021917,2]
[337790273,1726120248983,-500.0,0.00021917,2]
[337790274,1726120248993,-1061.83,0.00021917,2]
[337790275,1726120249003,-502.23973073,0.00021917,2]
[337790276,1726120249013,-500.0,0.00021917,2]
[337790277,1726120249022,-151.0,0.00021917,2]
[337790278,1726120249032,-151.0,0.00021917,2]
[337790279,1726120249042,-522.41108899,0.00021917,2]
[337790280,1726120249052,-501.96867687,0.00021917,2]
[337790281,1726120249061,-506.54690317,0.00021917,2]
[337790282,1726120249072,-500.0,0.00021917,2]
[337790283,1726120249081,-507.43112107,0.00021917,2]
[337790284,1726120249091,-500.0,0.00021917,2]
[337790285,1726120249102,-973.06,0.00021917,2]
[337790286,1726120249111,-500.0,0.00021917,2]
[337790287,1726120249121,-507.77690809,0.00021917,2]
[337790288,1726120249131,-503.36597922,0.00021917,2]
[337790289,1726120249141,-500.0,0.00021917,2]
[337790290,1726120249151,-510.01466914,0.00021917,2]
[337790291,1726120249161,-1808.78,0.00021917,2]
[337790292,1726120249171,-492.76881585,0.00021917,2]
[337790293,1726120249181,-850.52,0.00021917,2]
[337790294,1726120249193,-500.0,0.00021917,2]
[337790295,1726120249204,-500.0,0.00021917,2]
[337790296,1726120249213,-500.0,0.00021917,2]
[337790297,1726120249225,-500.0,0.00021917,2]
[337790298,1726120249234,-500.0,0.00021917,2]
[337790299,1726120249244,-500.0,0.00021917,2]
[337790300,1726120249254,-500.0,0.00021917,2]
[337790301,1726120249264,-500.0,0.00021917,2]
[337790302,1726120249273,-500.0,0.00021917,2]
[337790303,1726120249283,-500.0,0.00021917,2]
[337790304,1726120249293,-500.0,0.00021917,2]
[337790305,1726120249303,-500.0,0.00021917,2]
[337790306,1726120249312,-500.0,0.00021917,2]
[337790307,1726120249322,-500.0,0.00021917,2]
[337790308,1726120249335,-500.0,0.00021917,2]
[337790309,1726120249346,-500.0,0.00021917,2]
[337790310,1726120249356,-500.0,0.00021917,2]
[337790311,1726120249365,-500.0,0.00021917,2]
[337790312,1726120249375,-619.85,0.00021917,2]
[337790313,1726120249386,-1032.85,0.00021917,2]
[337790314,1726120249407,-1062.15,0.00021917,2]
[337790315,1726120249421,-723.52,0.00021917,2]
[337790316,1726120249430,-254.58195822,0.00021917,2]
[337790317,1726120249812,500.0,0.00016438,2]
[337790318,1726120249930,500.0,0.00016438,2]
[337790319,1726120249960,510.92223258,0.00016438,2]
[337790320,1726120249996,500.0,0.00016438,2]
[337790321,1726120250046,500.0,0.00016438,2]
[337790322,1726120250210,508.54635727,0.00016438,2]
[337790323,1726120250963,500.0,0.00016438,2]
[337790324,1726120251207,500.0,0.00016712,2]
[337790325,1726120251279,344.76624333,0.00016438,2]
[337790326,1726120251490,500.0,0.00016986,2]
[337790327,1726120251747,500.0,0.0001726,2]
[337790328,1726120252009,500.0,0.00017534,2]
[337790329,1726120252337,500.0,0.00017808,2]
[337790330,1726120252611,575.57419285,0.00018082,2]
[337790331,1726120254931,800.46,0.00016438,2]
[337790332,1726120255234,800.46,0.00016712,2]
[337790333,1726120255593,800.46,0.00016986,2]
[337790334,1726120255844,800.46,0.0001726,2]
[337790335,1726120256220,582.88107194,0.00017534,2]
[337790336,1726120340849,521.1,0.00010959,2]
[337790337,1726120362686,3000.0,0.00015509,2]
[337790338,1726120407064,20824.570882,0.00015435,2]
[337790339,1726120428779,250.0,0.0001541,2]
[337790340,1726120479048,1617.0442401,0.00015385,2]
[337790341,1726120494682,250.0,0.000155,2]
[337790342,1726120494865,250.0,0.00015543,2]
[337790343,1726120495092,250.0,0.00015585,2]
[337790344,1726120495499,250.0,0.00015628,2]
[337790345,1726120495701,250.0,0.0001567,2]
[337790346,1726120495922,250.0,0.00015713,2]
[337790347,1726120496186,250.0,0.00015755,2]
[337790348,1726120496411,250.0,0.00015798,2]
[337790349,1726120496624,250.0,0.0001584,2]
[337790350,1726120496832,250.0,0.00015883,2]
[337790351,1726120497136,250.0,0.00015925,2]
[337790352,1726120497535,250.0,0.00015968,2]
[337790353,1726120509898,744.7118294,0.00015261,2]
[337790354,1726120560981,8447.4954975,0.00015375,2]
[337790355,1726120625763,1297.2069558,0.00015264,2]
[337790356,1726120632299,4203.2264708,0.00015264,2]
[337790357,1726120661591,2126.657712,0.00015255,2]
[337790358,1726120681632,24900.0,0.00015243,2]
[337790360,1726120714956,359.138629,0.00015255,2]
[337790361,1726120715171,359.138629,0.00015259,2]
[337790362,1726120715368,359.138629,0.00015263,2]
[337790363,1726120715578,359.138629,0.00015267,2]
[337790364,1726120715805,359.138629,0.00015271,2]
[337790365,1726120716046,359.138629,0.00015275,2]
[337790366,1726120716263,359.138629,0.0001528,2]
[337790367,1726120716891,359.138629,0.00015284,2]
[337790368,1726120717136,359.138629,0.00015288,2]
[337790369,1726120717558,359.138629,0.00015292,2]
[337790370,1726120717785,359.138629,0.00015296,2]
[337790371,1726120718008,359.138629,0.000153,2]
[337790372,1726120718229,359.138629,0.00015304,2]
[337790373,1726120718464,359.138629,0.00015308,2]
[337790374,1726120718665,359.138629,0.00015312,2]
[337790375,1726120719245,359.138629,0.00015316,2]
[337790376,1726120719294,359.138629,0.0001532,2]
[337790377,1726120719510,359.138629,0.00015324,2]
[337790378,1726120719736,359.138629,0.00015328,2]
[337790379,1726120719942,359.138629,0.00015332,2]
[337790380,1726120763416,1236.6018381,0.00015267,2]
[337790381,1726120825832,3029.4012245,0.00015243,2]
[337790382,1726120835170,183.624095,0.00014481,2]
[337790383,1726120835406,183.624095,0.00014989,2]
[337790384,1726120835616,183.624095,0.00015497,2]
[337790385,1726120835973,1511.4644967,0.00015243,2]
[337790386,1726120882157,3000.0,0.0001524,2]
[337790387,1726120924416,250.0,0.0001524,2]
[337790390,1726121012841,412.3890747,0.00015253,2]
[337790391,1726121023056,-183.624095,0.00016005,2]
[337790392,1726121038862,250.0,0.00015424,2]
[337790393,1726121039068,250.0,0.00015466,2]
[337790394,1726121039285,250.0,0.00015508,2]
[337790395,1726121039495,250.0,0.00015551,2]
[337790396,1726121039704,250.0,0.00015593,2]
[337790397,1726121040115,250.0,0.00015635,2]
[337790398,1726121040165,250.0,0.00015678,2]
[337790399,1726121040580,250.0,0.0001572,2]
[337790400,1726121040797,250.0,0.00015762,2]
[337790401,1726121041036,250.0,0.00015805,2]
[337790402,1726121041284,250.0,0.00015847,2]
[337790403,1726121041496,250.0,0.00015889,2]
[337790404,1726121041820,250.0,0.00015931,2]
[337790405,1726121042071,250.0,0.00015974,2]
[337790406,1726121051380,-250.0,0.00016016,2]
[337790407,1726121071021,-250.0,0.00016058,2]
[337790408,1726121083193,-250.0,0.00016101,2]
[337790409,1726121090568,-250.0,0.00016143,2]
[337790410,1726121098234,-250.0,0.00016185,2]
[337790411,1726121131324,-175.0719194,0.00016216,2]
[337790412,1726121131353,-250.0,0.00016228,2]
[337790413,1726121131380,-3002.54218624,0.00016228,2]
[337790414,1726121131408,-403.46041391,0.00016317,2]
[337790415,1726121142234,-175.0719194,0.00016327,2]
[337790416,1726121142257,-161.49126517,0.00016327,2]
[337790417,1726121149106,-175.0719194,0.00016327,2]
[337790418,1726121149129,-336.56318457,0.00016328,2]
[337790419,1726121149151,-336.56318457,0.00016328,2]
[337790420,1726121149177,-300.0,0.00016336,2]
[337790421,1726121149199,-300.0,0.00016336,2]
[337790422,1726121149221,-1807.07777909,0.00016337,2]
[337790423,1726121149243,-1381.36591832,0.00016338,2]
[337790424,1726121150878,800.0,0.00015,2]
[337790425,1726121169572,24900.0,0.00015441,2]
[337790426,1726121185903,-300.0,0.00016337,2]
[337790427,1726121191559,1468.79227,0.0001546,2]
[337790428,1726121215335,800.0,0.00016,2]
[337790429,1726121216400,-4092.32906109,0.00016327,2]
[337790430,1726121216423,-446.058086,0.00016327,2]
[337790431,1726121216445,-4103.86185291,0.00016338,2]
[337790432,1726121227114,-300.0,0.00016337,2]
[337790433,1726121227138,-300.0,0.00016337,2]
[337790434,1726121227162,-14731.85062073,0.00016338,2]
[337790435,1726121227186,-154.74965493,0.00016427,2]
[337790436,1726121227209,-500.0,0.00016427,2]
[337790437,1726121227231,-336.12049709,0.00016427,2]
[337790438,1726121227255,-235.50849948,0.00016427,2]
[337790439,1726121227278,-500.0,0.00016427,2]
[337790440,1726121227301,-500.0,0.00016427,2]
[337790441,1726121227324,-500.0,0.00016427,2]
[337790442,1726121227349,-500.0,0.00016427,2]
[337790443,1726121227370,-500.0,0.00016427,2]
[337790444,1726121227392,-500.0,0.00016427,2]
[337790445,1726121227414,-173.48975964,0.00016427,2]
[337790446,1726121227438,-432.05741661,0.00016427,2]
[337790447,1726121227460,-500.0,0.00016427,2]
[337790448,1726121227481,-175.85653644,0.00016427,2]
[337790449,1726121227502,-500.0,0.00016427,2]
[337790450,1726121227525,-500.0,0.00016427,2]
[337790451,1726121227546,-500.0,0.00016427,2]
[337790452,1726121227567,-500.0,0.00016427,2]
[337790453,1726121227590,-500.0,0.00016427,2]
[337790454,1726121227611,-500.0,0.00016427,2]
[337790455,1726121227632,-500.0,0.00016427,2]
[337790456,1726121227656,-500.0,0.00016427,2]
[337790457,1726121227679,-500.0,0.00016427,2]
[337790458,1726121227702,-500.0,0.00016427,2]
[337790459,1726121227724,-500.0,0.00016427,2]
[337790460,1726121227750,-500.0,0.00016427,2]
[337790461,1726121227774,-500.0,0.00016427,2]
[337790462,1726121227799,-500.0,0.00016427,2]
[337790463,1726121227821,-175.30373278,0.00016427,2]
[337790464,1726121237096,-324.69626722,0.00016427,2]
[337790465,1726121237123,-500.0,0.00016427,2]
[337790466,1726121237147,-500.0,0.00016427,2]
[337790467,1726121237173,-500.0,0.00016427,2]
[337790468,1726121237198,-500.0,0.00016427,2]
[337790469,1726121237222,-500.0,0.00016427,2]
[337790470,1726121237247,-500.0,0.00016427,2]
[337790471,1726121237271,-500.0,0.00016427,2]
[337790472,1726121237295,-500.0,0.00016427,2]
[337790473,1726121237318,-500.0,0.00016427,2]
[337790474,1726121237341,-500.0,0.00016427,2]
[337790475,1726121237364,-500.0,0.00016427,2]
[337790476,1726121237387,-500.0,0.00016427,2]
[337790477,1726121237410,-500.0,0.00016427,2]
[337790478,1726121237433,-500.0,0.00016427,2]
[337790479,1726121237456,-529.19787849,0.00016427,2]
[337790480,1726121237480,-500.0,0.00016427,2]
[337790481,1726121237503,-500.0,0.00016427,2]
[337790482,1726121237525,-270.22860184,0.00016427,2]
[337790483,1726121237549,-500.0,0.00016427,2]
[337790484,1726121237572,-500.0,0.00016427,2]
[337790485,1726121237595,-500.0,0.00016427,2]
[337790486,1726121237618,-500.0,0.00016427,2]
[337790487,1726121237640,-500.0,0.00016427,2]
[337790488,1726121237664,-500.0,0.00016427,2]
[337790489,1726121237695,-500.0,0.00016427,2]
[337790490,1726121237719,-500.0,0.00016427,2]
[337790491,1726121237743,-500.0,0.00016427,2]
[337790492,1726121237766,-500.0,0.00016427,2]
[337790493,1726121237791,-500.0,0.00016427,2]
[337790494,1726121237815,-500.0,0.00016427,2]
[337790495,1726121237837,-500.0,0.00016427,2]
[337790496,1726121237861,-500.0,0.00016427,2]
[337790497,1726121237885,-500.0,0.00016427,2]
[337790498,1726121237908,-500.0,0.00016427,2]
[337790499,1726121237930,-500.0,0.00016427,2]
[337790500,1726121237953,-500.0,0.00016427,2]
[337790501,1726121237976,-500.0,0.00016427,2]
[337790502,1726121238000,-500.0,0.00016427,2]
[337790503,1726121238023,-500.0,0.00016427,2]
[337790504,1726121238046,-500.0,0.00016427,2]
[337790505,1726121238070,-500.0,0.00016427,2]
[337790506,1726121238094,-500.0,0.00016427,2]
[337790507,1726121238118,-500.0,0.00016427,2]
[337790508,1726121238142,-500.0,0.00016427,2]
[337790509,1726121238171,-500.0,0.00016427,2]
[337790510,1726121238196,-500.0,0.00016427,2]
[337790511,1726121238219,-500.0,0.00016427,2]
[337790512,1726121238243,-500.0,0.00016427,2]
[337790513,1726121238266,-500.0,0.00016427,2]
[337790514,1726121238290,-500.0,0.00016427,2]
[337790515,1726121238315,-256.18440556,0.00016427,2]
[337790516,1726121238338,-264.3279718,0.00016427,2]
[337790517,1726121238362,-500.0,0.00016427,2]
[337790518,1726121238385,-500.0,0.00016427,2]
[337790519,1726121238408,-538.1020259,0.00016427,2]
[337790520,1726121238436,-420.11063114,0.00016427,2]
[337790521,1726121238461,-500.0,0.00016427,2]
[337790522,1726121238485,-500.0,0.00016427,2]
[337790523,1726121238510,-500.0,0.00016427,2]
[337790524,1726121238535,-500.0,0.00016427,2]
[337790525,1726121238559,-500.0,0.00016427,2]
[337790526,1726121238582,-500.0,0.00016427,2]
[337790527,1726121238606,-13471.46830651,0.00016428,2]
[337790528,1726121242254,-152458.753428,0.00016428,2]
[337790529,1726121246111,-37625.95134049,0.00016428,2]
[337790530,1726121246135,-223547.569112,0.00016428,2]
[337790531,1726121246159,-501.14499569,0.00016438,2]
[337790532,1726121246182,-502.19304392,0.00016438,2]
[337790533,1726121246204,-200.0,0.00016438,2]
[337790534,1726121246226,-503.08898454,0.00016438,2]
[337790535,1726121246248,-500.0,0.00016438,2]
[337790536,1726121246271,-505.72544276,0.00016438,2]
[337790537,1726121246293,-500.0,0.00016438,2]
[337790538,1726121246315,-226.62450063,0.00016438,2]
[337790539,1726121246337,-500.0,0.00016438,2]
[337790540,1726121246359,-500.0,0.00016438,2]
[337790541,1726121246596,-500.0,0.00016438,2]
[337790542,1726121246619,-500.0,0.00016438,2]
[337790543,1726121246643,-501.01141681,0.00016438,2]
[337790544,1726121246666,-250.17236324,0.00016438,2]
[337790545,1726121249104,-249.82763676,0.00016438,2]
[337790546,1726121249127,-500.0,0.00016438,2]
[337790547,1726121249149,-2448.79,0.00016438,2]
[337790548,1726121249172,-500.0,0.00016438,2]
[337790549,1726121249194,-500.0,0.00016438,2]
[337790550,1726121249217,-504.3176939,0.00016438,2]
[337790551,1726121249240,-500.0,0.00016438,2]
[337790552,1726121249262,-500.0,0.00016438,2]
[337790553,1726121249285,-500.0,0.00016438,2]
[337790554,1726121249309,-334.09538548,0.00016438,2]
[337790555,1726121249334,-500.0,0.00016438,2]
[337790556,1726121249357,-500.0,0.00016438,2]
[337790557,1726121249379,-500.0,0.00016438,2]
[337790558,1726121249401,-500.0,0.00016438,2]
[337790559,1726121249422,-500.0,0.00016438,2]
[337790560,1726121249443,-500.0,0.00016438,2]
[337790561,1726121249464,-500.0,0.00016438,2]
[337790562,1726121249487,-500.0,0.00016438,2]
[337790563,1726121249508,-500.0,0.00016438,2]
[337790564,1726121249529,-500.0,0.00016438,2]
[337790565,1726121249549,-500.0,0.00016438,2]
[337790566,1726121249571,-500.0,0.00016438,2]
[337790567,1726121249592,-500.0,0.00016438,2]
[337790568,1726121249614,-500.0,0.00016438,2]
[337790569,1726121249637,-502.32446224,0.00016438,2]
[337790570,1726121249659,-500.0,0.00016438,2]
[337790571,1726121249682,-500.0,0.00016438,2]
[337790572,1726121249703,-500.0,0.00016438,2]
[337790573,1726121249727,-500.0,0.00016438,2]
[337790574,1726121249749,-500.0,0.00016438,2]
[337790575,1726121249771,-500.0,0.00016438,2]
[337790576,1726121249796,-500.0,0.00016438,2]
[337790577,1726121249818,-500.0,0.00016438,2]
[337790578,1726121249840,-1485.03,0.00016438,2]
[337790579,1726121249864,-500.71718067,0.00016438,2]
[337790580,1726121249885,-500.68038672,0.00016438,2]
[337790581,1726121249906,-500.0,0.00016438,2]
[337790582,1726121249927,-500.0,0.00016438,2]
[337790583,1726121249948,-501.07943625,0.00016438,2]
[337790584,1726121249969,-500.0,0.00016438,2]
[337790585,1726121249989,-500.0,0.00016438,2]
[337790586,1726121250011,-500.0,0.00016438,2]
[337790587,1726121250034,-500.0,0.00016438,2]
[337790588,1726121250056,-500.0,0.00016438,2]
[337790589,1726121250077,-500.0,0.00016438,2]
[337790590,1726121250098,-500.0,0.00016438,2]
[337790591,1726121250118,-500.0,0.00016438,2]
[337790592,1726121250139,-502.78382132,0.00016438,2]
[337790593,1726121250164,-500.0,0.00016438,2]
[337790594,1726121250187,-500.0,0.00016438,2]
[337790595,1726121250207,-507.55926875,0.00016438,2]
[337790596,1726121250227,-500.0,0.00016438,2]
[337790597,1726121250248,-562.18,0.00016438,2]
[337790598,1726121250271,-500.0,0.00016438,2]
[337790599,1726121250292,-500.0,0.00016438,2]
[337790600,1726121250312,-1088.69,0.00016438,2]
[337790601,1726121250333,-1505.36,0.00016438,2]
[337790602,1726121250354,-500.0,0.00016438,2]
[337790603,1726121250374,-500.0,0.00016438,2]
[337790604,1726121250395,-1334.28,0.00016438,2]
[337790605,1726121250416,-606.49,0.00016438,2]
[337790606,1726121250447,-500.0,0.00016438,2]
[337790607,1726121250467,-500.0,0.00016438,2]
[337790608,1726121250487,-700.01,0.00016438,2]
[337790609,1726121250508,-500.0,0.00016438,2]
[337790610,1726121250529,-500.0,0.00016438,2]